bitfinex-derivatives/quotes_SOLF0:USTF0_20250416
["timestamp","ask_amount","ask_price","bid_price","bid_amount"]
[1744799907599,0.05712097,125.4,125.37,6.8067654]
[1744799907799,0.05712097,125.4,125.39,7.9757]
[1744799907999,0.05712097,125.4,125.39,14.7824654]
[1744799908388,36.5267654,125.47,125.39,6.8067654]
[1744799908594,36.5267654,125.47,125.42,6.8067654]
[1744799908996,44.4976654,125.47,125.44,7.9722]
[1744799909402,6.8067654,125.46,125.41,6.8067654]
[1744799909694,6.8067654,125.45,125.4,6.8067654]
[1744799909900,0.0585135,125.45,125.43,6.8067654]
[1744799910602,0.0585135,125.45,125.44,7.9725]
[1744799911907,0.0585135,125.45,125.44,14.7792654]
[1744799914305,1.35e-05,125.45,125.44,14.7792654]
[1744799914803,1.35e-05,125.45,125.44,44.4992654]
[1744799914998,29.72,125.5,125.49,7.9693]
[1744799915193,6.8067654,125.52,125.44,36.5267654]
[1744799915194,36.5267654,125.53,125.47,6.8067654]
[1744799915394,6.8067654,125.52,125.47,6.8067654]
[1744799915596,14.7742654,125.52,125.49,7.9689]
[1744799915905,14.7742654,125.52,125.47,6.8067654]
[1744799916096,14.7742654,125.52,125.48,0.05419391]
[1744799916302,0.05666188,125.51,125.49,7.9692]
[1744799916599,0.05666188,125.51,125.48,0.05419391]
[1744799917301,0.05666188,125.51,125.5,7.9687]
[1744799930215,8.02476188,125.51,125.49,7.9691]
[1744799930409,0.05666188,125.51,125.48,0.05419391]
[1744799931214,0.05666188,125.51,125.49,7.9693]
[1744799931513,0.05666188,125.51,125.48,0.05419391]
[1744799932214,0.05666188,125.51,125.5,7.9687]
[1744799940117,0.05666188,125.51,125.5,14.77399475]
[1744799940318,6.80529475,125.54,125.53,7.9668]
[1744799940720,6.80529475,125.54,125.52,7.9671]
[1744799941416,6.85883897,125.54,125.52,8.0236713]
[1744799942326,6.80529475,125.53,125.52,8.0236713]
[1744799943327,6.80529475,125.53,125.52,0.0565713]
[1744799946631,14.77209475,125.53,125.52,0.0565713]
[1744799947130,6.80529475,125.53,125.52,0.0565713]
[1744799947332,6.80529475,125.53,125.52,8.0239713]
[1744799947526,8.02004422,125.54,125.52,8.0239713]
[1744799947832,6.80529475,125.53,125.52,8.0239713]
[1744799948933,14.77209475,125.53,125.52,0.0565713]
[1744799950533,6.80529475,125.53,125.52,0.0565713]
[1744799952332,6.80529475,125.53,125.52,8.0239713]
[1744799952734,6.80529475,125.53,125.52,0.0565713]
[1744799953333,6.80529475,125.53,125.52,8.0239713]
[1744799953935,6.85883897,125.54,125.53,7.9668]
[1744799954134,0.05354422,125.54,125.53,7.9668]
[1744799955631,6.85883897,125.54,125.52,0.0565713]
[1744799955833,6.80529475,125.53,125.52,0.0565713]
[1744799957139,6.80529475,125.53,125.52,8.0239713]
[1744799958042,6.80529475,125.53,125.52,0.0565713]
[1744799958343,14.77209475,125.53,125.52,0.0565713]
[1744799958940,7.9676,125.52,125.5,7.9684]
[1744799959131,6.80529475,125.51,125.5,7.9684]
[1744799959532,6.80529475,125.51,125.49,7.9691]
[1744799959731,36.48529475,125.5,125.44,29.68]
[1744799959933,6.80529475,125.47,125.44,29.68]
[1744799960338,6.85904372,125.48,125.44,29.73711327]
[1744799961345,6.85904372,125.48,125.46,7.9709]
[1744799965546,14.82914372,125.48,125.46,7.9709]
[1744799966047,6.85904372,125.48,125.46,7.9709]
[1744799968550,6.85904372,125.48,125.47,7.9706]
[1744799968751,0.05374897,125.48,125.47,7.9706]
[1744799972152,0.05374897,125.48,125.46,7.971]
[1744799972349,6.85904372,125.48,125.46,7.971]
[1744799973548,0.05374897,125.48,125.47,7.9706]
[1744799973748,0.05374897,125.48,125.44,0.05711327]
[1744799974048,0.05374897,125.48,125.46,7.9709]
[1744799974356,0.05374897,125.48,125.44,0.05711327]
[1744799974357,0.05374897,125.48,125.44,6.86240802]
[1744799974756,0.05374897,125.48,125.46,7.971]
[1744799975556,8.02374897,125.48,125.46,7.971]
[1744799975954,14.82904372,125.48,125.46,7.971]
[1744799976149,6.80529475,125.47,125.44,0.05711327]
[1744799978158,7.9713,125.46,125.44,8.02931327]
[1744799978853,7.9719,125.45,125.44,0.05711327]
[1744799979059,29.68,125.46,125.44,0.05711327]
[1744799979561,29.68,125.46,125.45,7.9719]
[1744799979959,29.68,125.46,125.44,8.02931327]
[1744799980558,29.68,125.46,125.45,7.9719]
[1744799980761,14.82904372,125.48,125.45,7.9719]
[1744799981662,14.82904372,125.48,125.44,0.05711327]
[1744799981663,7.9708,125.47,125.44,8.02931327]
[1744799981857,6.80529475,125.47,125.44,8.02931327]
[1744799983161,7.9714,125.46,125.44,0.05711327]
[1744799984261,7.9714,125.46,125.44,8.02961327]
[1744799984965,7.9714,125.46,125.44,0.05711327]
[1744799987560,7.9714,125.46,125.44,8.02951327]
[1744799988161,7.9714,125.46,125.44,0.05711327]
[1744799992766,14.77629475,125.47,125.44,8.02941327]
[1744799992963,6.80529475,125.47,125.44,0.05711327]
[1744799993464,7.9716,125.46,125.44,0.05711327]
[1744799994262,7.9716,125.46,125.44,8.02951327]
[1744799995365,7.9716,125.46,125.44,0.05711327]
[1744799995965,14.77629475,125.47,125.44,0.05711327]
[1744799996264,6.80529475,125.47,125.44,8.02941327]
[1744799997167,7.9713,125.46,125.44,8.02941327]
[1744799997866,7.9713,125.46,125.44,0.05711327]
[1744800000170,37.6513,125.46,125.44,8.02961327]
[1744800000370,29.68,125.46,125.44,8.02961327]
[1744800002168,37.6513,125.46,125.44,0.05711327]
[1744800002775,6.80529475,125.45,125.44,0.05711327]
[1744800004072,14.77719475,125.45,125.44,0.05711327]
[1744800004674,6.80529475,125.45,125.44,0.05711327]
[1744800005676,14.77719475,125.45,125.44,0.05711327]
[1744800006672,6.80529475,125.45,125.44,0.05711327]
[1744800006876,36.48529475,125.46,125.44,8.02961327]
[1744800007376,44.45679475,125.46,125.44,8.02961327]
[1744800007687,36.48529475,125.46,125.44,8.02961327]
[1744800007886,29.68,125.46,125.44,0.05711327]
[1744800009185,29.68,125.46,125.45,7.9719]
[1744800011281,14.82924372,125.48,125.44,6.86240802]
[1744800011282,0.05374897,125.48,125.44,6.86240802]
[1744800011482,0.05374897,125.48,125.45,6.80529475]
[1744800011881,0.05374897,125.48,125.47,7.9706]
[1744800017090,36.46529475,125.52,125.5,7.9687]
[1744800017390,36.46529475,125.53,125.48,6.80529475]
[1744800017591,44.43249475,125.53,125.48,6.80529475]
[1744800017790,44.43249475,125.53,125.5,7.9682]
[1744800018393,44.48799693,125.53,125.5,8.02351155]
[1744800018593,29.71550218,125.53,125.5,0.05531155]
[1744800019386,29.71550218,125.53,125.51,7.9677]
[1744800021188,29.71550218,125.53,125.5,0.05531155]
[1744800021384,6.80529475,125.51,125.45,36.46529475]
[1744800021590,6.80529475,125.5,125.45,36.46529475]
[1744800021896,14.77409475,125.5,125.47,7.9702]
[1744800022593,14.77529475,125.48,125.47,0.05461732]
[1744800026693,7.9715,125.46,125.4,6.80529475]
[1744800026893,6.80529475,125.45,125.42,7.9734]
[1744800027293,14.77759475,125.45,125.42,7.9734]
[1744800027798,14.83691091,125.45,125.42,8.02707565]
[1744800036310,14.83691091,125.45,125.42,0.05367565]
[1744800037206,14.83691091,125.45,125.42,8.02707565]
[1744800037507,14.83691091,125.45,125.42,0.05367565]
[1744800038108,14.83691091,125.45,125.42,8.02717565]
[1744800039112,0.05931616,125.45,125.42,6.8589704]
[1744800039607,0.05931616,125.45,125.44,7.9725]
[1744800043914,6.80529475,125.49,125.46,7.9713]
[1744800044306,14.77469475,125.49,125.46,7.9713]
[1744800044712,14.77469475,125.49,125.47,7.9705]
[1744800044910,14.83322492,125.49,125.47,7.9705]
[1744800045111,0.05853017,125.49,125.46,0.05796475]
[1744800045310,0.05853017,125.49,125.48,7.97]
[1744800050512,0.05853017,125.49,125.46,13.2353595]
[1744800050513,6.86382492,125.49,125.47,7.9704]
[1744800051117,6.86382492,125.49,125.46,8.02896475]
[1744800051316,6.80529475,125.47,125.46,0.05796475]
[1744800052212,14.77589475,125.47,125.46,0.05796475]
[1744800056120,6.80529475,125.47,125.46,0.05796475]
[1744800056322,6.80529475,125.48,125.47,7.9706]
[1744800056621,6.86382492,125.49,125.47,7.9706]
[1744800059523,14.83322492,125.49,125.47,7.9706]
[1744800060022,6.80529475,125.48,125.47,7.9706]
[1744800060424,6.80529475,125.48,125.46,8.02886475]
[1744800060719,6.86382492,125.49,125.46,0.05796475]
[1744800060925,0.05853017,125.49,125.46,6.8632595]
[1744800062927,0.05853017,125.49,125.48,7.97]
[1744800064625,29.64,125.54,125.48,6.80529475]
[1744800064826,7.9677,125.52,125.48,2.1523]
[1744800065026,6.80529475,125.52,125.49,7.969]
[1744800065421,14.77309475,125.52,125.49,7.969]
[1744800065622,14.8272881,125.52,125.49,8.02419355]
[1744800068521,14.77339475,125.51,125.49,0.05519355]
[1744800068921,14.77399475,125.5,125.49,0.05519355]
[1744800074129,7.9711,125.47,125.43,2.078]
[1744800074330,6.80529475,125.46,125.43,2.078]
[1744800074532,14.77689475,125.46,125.44,7.9722]
[1744800074729,6.80529475,125.45,125.4,6.80529475]
[1744800074927,6.80529475,125.44,125.4,6.80529475]
[1744800075130,6.80529475,125.44,125.39,10.98129475]
[1744800075335,6.85700625,125.43,125.41,0.05506919]
[1744800075531,6.80529475,125.42,125.41,0.05506919]
[1744800076337,36.42529475,125.42,125.41,0.05506919]
[1744800077228,44.39909475,125.42,125.41,0.05506919]
[1744800078741,36.42529475,125.42,125.41,8.02946919]
[1744800079130,36.42529475,125.42,125.41,0.05506919]
[1744800080436,29.62,125.42,125.41,0.05506919]
[1744800080636,36.42529475,125.42,125.41,0.05506919]
[1744800082234,36.42529475,125.42,125.41,8.02946919]
[1744800082438,0.06035874,125.43,125.41,0.05506919]
[1744800083231,0.06035874,125.43,125.42,7.9738]
[1744800083434,6.86565349,125.43,125.41,0.05506919]
[1744800083730,6.86565349,125.43,125.41,8.02906919]
[1744800085140,6.86565349,125.43,125.42,7.9738]
[1744800085341,0.06035874,125.43,125.42,7.9738]
[1744800089651,6.86565349,125.43,125.42,7.9738]
[1744800090047,6.86565349,125.43,125.41,0.05506919]
[1744800090251,6.80529475,125.42,125.41,0.05506919]
[1744800090750,14.77909475,125.42,125.41,0.05506919]
[1744800091550,7.9738,125.42,125.41,0.05506919]
[1744800091851,14.77909475,125.42,125.41,0.05506919]
[1744800092750,44.39909475,125.42,125.41,0.05506919]
[1744800098047,36.42529475,125.42,125.35,29.62]
[1744800098254,6.80529475,125.38,125.33,31.7054]
[1744800098554,6.80529475,125.38,125.37,7.977]
[1744800099751,6.80529475,125.38,125.36,0.05873396]
[1744800099955,6.80529475,125.37,125.36,0.05873396]
[1744800100155,6.80529475,125.37,125.3,33.913]
[1744800100356,6.80529475,125.34,125.3,33.913]
[1744800101157,6.80529475,125.34,125.32,7.9797]
[1744800101558,6.86308586,125.34,125.32,7.9797]
[1744800102961,6.86308586,125.34,125.33,7.9795]
[1744800103162,0.05779111,125.34,125.33,7.9795]
[1744800111771,29.62,125.4,125.37,7.9767]
[1744800111967,6.80529475,125.39,125.37,7.9767]
[1744800112668,14.78119475,125.39,125.37,7.9767]
[1744800112868,14.83348936,125.39,125.37,8.03101645]
[1744800113167,6.80529475,125.38,125.37,8.03101645]
[1744800117673,6.80529475,125.38,125.3,56.68009475]
[1744800117873,6.80529475,125.36,125.31,6.80529475]
[1744800118174,6.80529475,125.37,125.35,7.9779]
[1744800118675,14.78239475,125.37,125.35,7.9779]
[1744800118877,14.8409362,125.37,125.35,7.9779]
[1744800121580,6.8638362,125.37,125.36,7.9776]
[1744800122377,14.8408362,125.37,125.35,7.9779]
[1744800122781,6.8638362,125.37,125.33,29.62]
[1744800123078,6.8638362,125.37,125.33,7.9793]
[1744800123079,14.78359475,125.35,125.33,7.9793]
[1744800126582,7.9789,125.34,125.32,7.9798]
[1744800127179,8.03600772,125.34,125.32,7.9798]
[1744800127982,8.03600772,125.34,125.3,40.71829475]
[1744800127983,0.05710772,125.34,125.33,7.9795]
[1744800128680,8.03600772,125.34,125.33,7.9795]
[1744800128881,0.05710772,125.34,125.33,7.9795]
[1744800132291,29.62,125.4,125.33,29.62]
[1744800132292,6.80529475,125.39,125.33,29.62]
[1744800132480,37.5954,125.4,125.35,6.80529475]
[1744800132785,37.5954,125.4,125.38,7.976]
[1744800133388,37.64594204,125.4,125.38,8.0347792]
[1744800133585,29.67054204,125.4,125.39,7.9757]
[1744800133786,0.05054204,125.4,125.39,7.9757]
[1744800136792,8.02604204,125.4,125.38,8.0348792]
[1744800136994,6.80529475,125.39,125.38,0.0587792]
[1744800137591,14.78099475,125.39,125.38,0.0587792]
[1744800137891,6.80529475,125.39,125.33,29.6]
[1744800138094,6.80529475,125.37,125.33,29.6]
[1744800138390,14.78269475,125.37,125.34,7.9786]
[1744800139086,14.83624115,125.37,125.34,7.9786]
[1744800139291,8.0309464,125.37,125.34,7.9786]
[1744800139792,8.0309464,125.37,125.35,7.9782]
[1744800139982,8.0309464,125.37,125.33,29.6]
[1744800140791,8.0309464,125.37,125.34,7.9784]
[1744800141293,8.0309464,125.37,125.33,29.6]
[1744800141488,0.0535464,125.37,125.33,29.6]
[1744800141893,0.0535464,125.37,125.36,7.9776]
[1744800145993,8.0309464,125.37,125.34,7.9788]
[1744800146193,0.0535464,125.37,125.34,7.9788]
[1744800146493,0.0535464,125.37,125.33,29.6]
[1744800146694,8.0308464,125.37,125.34,7.9788]
[1744800146993,8.0308464,125.37,125.33,29.6]
[1744800147292,8.0308464,125.37,125.34,7.9788]
[1744800148194,8.0308464,125.37,125.35,7.9782]
[1744800151744,0.0535464,125.37,125.35,7.9778]
[1744800152231,8.0308464,125.37,125.35,7.9778]
[1744800153124,0.0535464,125.37,125.36,7.9776]
[1744800153332,0.0535464,125.37,125.33,29.6]
[1744800153933,8.0306464,125.37,125.35,7.9779]
[1744800157406,0.0535464,125.37,125.35,7.9779]
[1744800157705,0.0535464,125.37,125.36,7.9776]
[1744800170621,14.79527122,125.4,125.38,7.9761]
[1744800171019,14.79477122,125.41,125.36,6.81997122]
[1744800171214,14.79477122,125.41,125.39,7.9754]
[1744800171716,6.8773964,125.41,125.39,0.05303823]
[1744800172020,7.9751,125.4,125.39,0.05303823]
[1744800175721,7.9751,125.4,125.39,8.02873823]
[1744800177812,7.9751,125.4,125.39,0.05303823]
[1744800182323,14.79507122,125.4,125.39,0.05303823]
[1744800183121,44.37507122,125.4,125.39,0.05303823]
[1744800196036,44.37507122,125.4,125.39,8.02873823]
[1744800196934,36.39997122,125.4,125.39,8.02873823]
[1744800198830,6.81997122,125.4,125.39,8.02873823]
[1744800199833,14.79507122,125.4,125.39,0.05303823]
[1744800200939,6.81997122,125.4,125.39,8.02873823]
[1744800201837,0.05742518,125.41,125.4,7.9751]
[1744800202038,6.81997122,125.45,125.39,29.61303823]
[1744800203241,0.05850891,125.43,125.42,7.9735]
[1744800203837,6.87848013,125.43,125.41,0.06087626]
[1744800204139,6.81997122,125.42,125.41,0.06087626]
[1744800204439,6.81997122,125.42,125.32,15.9602]
[1744800204641,6.81997122,125.4,125.35,29.56]
[1744800205139,14.79547122,125.4,125.38,7.9761]
[1744800205939,6.87898977,125.4,125.39,7.9757]
[1744800208041,14.85408977,125.4,125.38,8.02902785]
[1744800212063,29.54,125.39,125.26,1.38814097]
[1744800212353,6.81997122,125.33,125.28,36.35997122]
[1744800212550,6.81997122,125.33,125.31,7.9805]
[1744800213348,6.87249497,125.33,125.31,7.9805]
[1744800215349,0.05252375,125.33,125.32,7.9802]
[1744800216243,6.81997122,125.36,125.32,6.81997122]
[1744800216449,14.79727122,125.37,125.32,10.96707122]
[1744800217250,14.79727122,125.37,125.34,7.9785]
[1744800217440,0.05573556,125.36,125.34,7.9785]
[1744800220652,6.87570678,125.36,125.33,8.03301261]
[1744800220847,6.81997122,125.35,125.33,8.03301261]
[1744800222251,14.79847122,125.35,125.33,8.03301261]
[1744800223157,7.9789,125.34,125.33,0.05361261]
[1744800223453,6.81997122,125.35,125.33,0.05361261]
[1744800223848,14.79857122,125.35,125.33,0.05361261]
[1744800224651,7.9789,125.34,125.33,0.05361261]
[1744800224854,14.79887122,125.34,125.33,0.05361261]
[1744800225055,6.81997122,125.34,125.33,0.05361261]
[1744800226157,6.81997122,125.34,125.33,8.03311261]
[1744800226759,6.81997122,125.35,125.34,7.9785]
[1744800228958,36.43570678,125.36,125.35,7.9783]
[1744800229157,6.87570678,125.36,125.35,7.9783]
[1744800234861,6.87570678,125.36,125.34,7.9785]
[1744800235663,6.87570678,125.36,125.35,7.9783]
[1744800236366,0.05573556,125.36,125.35,7.9783]
[1744800237064,0.05573556,125.36,125.34,7.9785]
[1744800238167,8.03343556,125.36,125.34,7.9785]
[1744800239067,0.05573556,125.36,125.35,7.9783]
[1744800239567,8.03333556,125.36,125.35,7.9783]
[1744800239767,0.05573556,125.36,125.35,7.9783]
[1744800244376,0.05573556,125.36,125.33,6.63421261]
[1744800244870,0.05573556,125.36,125.35,7.9783]
[1744800268995,6.81997122,125.38,125.34,29.5]
[1744800269302,36.31997122,125.42,125.35,6.81997122]
[1744800269600,36.31997122,125.42,125.4,7.9747]
[1744800269999,44.29417122,125.42,125.4,7.9747]
[1744800270299,44.34676471,125.42,125.4,8.03466988]
[1744800270997,36.37256471,125.42,125.4,8.03466988]
[1744800271198,0.05259349,125.42,125.41,7.9744]
[1744800276401,8.02639349,125.42,125.4,8.03476988]
[1744800276603,6.87256471,125.42,125.4,0.05996988]
[1744800278208,7.9744,125.41,125.4,0.05996988]
[1744800283507,8.02669349,125.42,125.4,8.03446988]
[1744800283708,0.05259349,125.42,125.4,0.05996988]
[1744800284612,0.05259349,125.42,125.41,7.9744]
[1744800292416,29.5,125.45,125.44,7.9725]
[1744800292617,6.81997122,125.46,125.44,7.9725]
[1744800293018,14.79127122,125.46,125.44,7.9725]
[1744800293318,6.81997122,125.45,125.4,29.48]
[1744800293520,6.81997122,125.43,125.4,29.48]
[1744800293715,6.81997122,125.43,125.41,8.03077692]
[1744800294318,6.81997122,125.43,125.42,7.9738]
[1744800294918,6.81997122,125.43,125.41,8.03067692]
[1744800295619,6.81997122,125.42,125.41,0.05657692]
[1744800295820,6.81997122,125.43,125.41,0.05657692]
[1744800296019,14.79337122,125.43,125.41,8.03067692]
[1744800296219,6.81997122,125.43,125.41,8.03067692]
[1744800297021,14.79337122,125.43,125.41,8.03067692]
[1744800299818,0.05720315,125.44,125.41,0.05657692]
[1744800300321,0.05720315,125.44,125.43,7.9732]
[1744800300521,0.05720315,125.44,125.41,0.05657692]
[1744800301522,8.02980315,125.44,125.42,7.9735]
[1744800304726,0.05720315,125.44,125.41,0.05657692]
[1744800304925,6.81997122,125.43,125.41,0.05657692]
[1744800308226,7.9738,125.42,125.41,0.05657692]
[1744800308524,6.81997122,125.43,125.41,8.03097692]
[1744800308724,6.81997122,125.43,125.41,0.05657692]
[1744800309929,7.9738,125.42,125.41,0.05657692]
[1744800310630,14.79377122,125.42,125.41,0.05657692]
[1744800312131,6.81997122,125.42,125.41,8.03097692]
[1744800312831,14.79377122,125.42,125.41,8.03097692]
[1744800313130,6.81997122,125.42,125.41,8.03097692]
[1744800315040,6.81997122,125.43,125.42,7.9736]
[1744800315228,6.87717437,125.44,125.41,0.05657692]
[1744800316033,14.84987437,125.44,125.42,7.9735]
[1744800316332,6.87717437,125.44,125.42,7.9735]
[1744800316732,6.87717437,125.44,125.41,0.05657692]
[1744800316934,0.05720315,125.44,125.42,6.81997122]
[1744800317333,0.05720315,125.44,125.43,7.9732]
[1744800317728,14.78957122,125.49,125.46,7.9708]
[1744800318035,6.81997122,125.5,125.44,6.81997122]
[1744800318235,6.81997122,125.49,125.47,7.9703]
[1744800318837,6.88075008,125.49,125.47,8.02150329]
[1744800319138,6.88075008,125.49,125.48,7.97]
[1744800319338,0.06077886,125.49,125.48,7.97]
[1744800319541,0.06077886,125.49,125.47,0.05120329]
[1744800319732,6.81997122,125.48,125.47,0.05120329]
[1744800320640,6.81997122,125.48,125.43,29.46]
[1744800320938,6.81997122,125.46,125.41,4.2006]
[1744800321236,6.81997122,125.45,125.41,4.2006]
[1744800321639,6.81997122,125.45,125.43,7.9726]
[1744800321937,0.05789347,125.44,125.43,7.9726]
[1744800333949,0.05789347,125.44,125.42,0.05824627]
[1744800333950,6.87786469,125.44,125.42,8.03164627]
[1744800334150,6.81997122,125.43,125.42,0.05824627]
[1744800334854,6.81997122,125.43,125.42,8.03204627]
[1744800336254,14.79317122,125.43,125.42,0.05824627]
[1744800341560,6.81997122,125.43,125.37,36.25997122]
[1744800341753,6.81997122,125.42,125.37,36.25997122]
[1744800341949,14.79407122,125.42,125.4,7.9747]
[1744800342450,7.976,125.39,125.37,37.4167]
[1744800342760,6.81997122,125.38,125.37,7.9767]
[1744800342960,6.81997122,125.38,125.37,8.03170328]
[1744800343356,6.8709539,125.39,125.38,7.9763]
[1744800343753,6.8709539,125.39,125.37,0.05500328]
[1744800344360,6.8709539,125.39,125.37,8.03160328]
[1744800346059,6.8709539,125.39,125.38,7.9763]
[1744800348461,0.05098268,125.39,125.38,7.9763]
[1744800348662,29.44,125.42,125.41,7.9744]
[1744800349661,36.25997122,125.42,125.41,7.9744]
[1744800350262,36.25997122,125.42,125.4,8.025204]
[1744800350457,6.81997122,125.41,125.4,8.025204]
[1744800351759,36.25997122,125.42,125.41,7.9744]
[1744800352256,0.05974401,125.43,125.42,7.9738]
[1744800360362,36.23997122,125.48,125.42,6.81997122]
[1744800360559,36.23997122,125.48,125.43,36.23997122]
[1744800360763,29.42,125.48,125.45,6.81997122]
[1744800360965,6.81997122,125.5,125.49,7.9693]
[1744800361264,14.78877122,125.5,125.45,6.81997122]
[1744800361460,6.81997122,125.49,125.48,8.02736788]
[1744800361661,6.81997122,125.49,125.48,0.05736788]
[1744800362272,14.78927122,125.49,125.48,0.05736788]
[1744800362772,14.78927122,125.49,125.4,52.19007122]
[1744800362773,7.9712,125.47,125.4,52.19007122]
[1744800363076,6.81997122,125.45,125.4,52.19007122]
[1744800363272,6.81997122,125.45,125.44,7.9722]
[1744800364366,0.05352293,125.46,125.43,0.05434439]
[1744800364573,0.05352293,125.46,125.43,6.87431561]
[1744800365173,0.05352293,125.46,125.44,6.81997122]
[1744800365569,0.05352293,125.46,125.45,7.9719]
[1744800367575,2.293e-05,125.46,125.45,7.9719]
[1744800368178,2.293e-05,125.46,125.45,12.2061]
[1744800368377,29.42,125.53,125.51,7.968]
[1744800368579,37.3871,125.53,125.51,7.968]
[1744800369180,7.9675,125.52,125.5,7.9685]
[1744800369576,8.027657,125.52,125.5,8.02284288]
[1744800369973,0.060157,125.52,125.5,8.02284288]
[1744800370477,8.027857,125.52,125.5,8.02284288]
[1744800371485,0.060157,125.52,125.5,8.02284288]
[1744800372283,0.060157,125.52,125.51,7.9681]
[1744800372984,37.3849,125.56,125.5,0.05434288]
[1744800373982,29.42,125.56,125.55,7.9655]
[1744800375481,29.42,125.56,125.54,8.02282434]
[1744800376978,37.3849,125.56,125.54,8.02282434]
[1744800377683,29.42,125.56,125.54,8.02282434]
[1744800377885,29.42,125.56,125.55,7.9655]
[1744800378081,29.42,125.56,125.54,0.05692434]
[1744800378482,29.42,125.56,125.55,7.9655]
[1744800378682,0.0528045,125.57,125.55,7.9655]
[1744800381686,8.0171045,125.57,125.55,7.9655]
[1744800381887,0.0528045,125.57,125.54,0.05692434]
[1744800382181,10.69474892,125.57,125.54,0.05692434]
[1744800383189,0.0528045,125.57,125.54,0.05692434]
[1744800384188,7.9653,125.56,125.54,8.02272434]
[1744800385784,8.0173045,125.57,125.55,7.9653]
[1744800385985,0.0528045,125.57,125.54,0.05692434]
[1744800387394,0.0528045,125.57,125.55,7.9652]
[1744800388195,8.0171045,125.57,125.55,7.9652]
[1744800389890,0.0528045,125.57,125.54,0.05692434]
[1744800391196,0.0528045,125.57,125.55,7.965]
[1744800391596,0.0528045,125.57,125.54,0.05692434]
[1744800391898,8.0171045,125.57,125.55,7.9652]
[1744800392297,0.0528045,125.57,125.55,7.9652]
[1744800393801,6.80156177,125.56,125.54,8.02282434]
[1744800394000,6.80156177,125.55,125.54,0.05692434]
[1744800394500,6.80156177,125.55,125.54,8.02312434]
[1744800395001,14.76676177,125.56,125.54,8.02312434]
[1744800402106,14.81896627,125.57,125.55,7.9655]
[1744800402303,6.85436627,125.57,125.54,0.05692434]
[1744800402504,0.0528045,125.57,125.54,0.05692434]
[1744800402807,0.0528045,125.57,125.56,7.9649]
[1744800404508,6.80156177,125.61,125.55,6.80156177]
[1744800404712,6.80156177,125.62,125.57,6.80156177]
[1744800404919,6.80156177,125.6,125.56,29.38]
[1744800405210,36.18156177,125.6,125.54,6.80156177]
[1744800405711,0.05644425,125.58,125.56,0.05089618]
[1744800406313,6.85800602,125.58,125.56,0.05089618]
[1744800406813,0.05644425,125.58,125.56,0.05089618]
[1744800407813,0.05644425,125.58,125.57,7.9643]
[1744800408311,7.9607,125.63,125.61,7.9612]
[1744800408508,6.80156177,125.65,125.61,7.9612]
[1744800408910,7.9602,125.64,125.62,7.9608]
[1744800409111,6.80156177,125.65,125.62,7.9608]
[1744800409307,6.80156177,125.63,125.58,6.80156177]
[1744800409516,14.76236177,125.63,125.62,0.05867862]
[1744800409815,14.76236177,125.63,125.61,8.01439015]
[1744800410217,14.76236177,125.63,125.61,0.05299015]
[1744800410409,14.76266177,125.62,125.61,0.05299015]
[1744800415921,36.18156177,125.63,125.61,8.01469015]
[1744800416116,0.05321741,125.64,125.61,0.05299015]
[1744800416311,6.85477918,125.64,125.61,0.05299015]
[1744800417122,14.81487918,125.64,125.62,7.9608]
[1744800421224,7.9606,125.63,125.61,8.01429015]
[1744800421619,6.85477918,125.64,125.62,7.9611]
[1744800422120,14.81487918,125.64,125.62,7.9611]
[1744800422827,0.05321741,125.64,125.63,7.9605]
[1744800424023,1.741e-05,125.64,125.63,14.76206177]
[1744800428829,1.741e-05,125.64,125.63,7.9605]
[1744800429124,1.741e-05,125.64,125.62,7.9609]
[1744800429329,14.76177918,125.64,125.61,0.05299015]
[1744800429726,7.96021741,125.64,125.61,0.05299015]
[1744800429923,7.96021741,125.64,125.62,7.9606]
[1744800430729,14.76177918,125.64,125.62,7.9606]
[1744800431029,6.80157918,125.64,125.61,8.01429015]
[1744800431629,14.76187918,125.64,125.62,7.961]
[1744800434031,44.10187918,125.64,125.61,8.01439015]
[1744800434225,6.80156177,125.63,125.61,0.05299015]
[1744800434632,7.9611,125.62,125.61,0.05299015]
[1744800434932,6.80156177,125.63,125.61,0.05299015]
[1744800435128,14.76236177,125.63,125.61,8.01449015]
[1744800435534,6.80156177,125.63,125.61,0.05299015]
[1744800435731,14.76266177,125.62,125.61,0.05299015]
[1744800435933,6.80156177,125.62,125.55,6.80156177]
[1744800436130,6.80156177,125.6,125.55,6.80156177]
[1744800436331,6.80156177,125.59,125.54,13.20516177]
[1744800436532,6.80156177,125.57,125.52,6.80156177]
[1744800436735,7.965,125.56,125.52,6.80156177]
[1744800437133,0.06135309,125.55,125.53,0.05746765]